bitfinex/quotes_SOLUSD_20250129
["timestamp","ask_amount","ask_price","bid_price","bid_amount"]
[1738181621262,34.36631531,232.15,232.06,23.902374]
[1738181621465,34.36631531,232.09,232.06,23.776884]
[1738181621775,34.36631531,232.07,231.99,4.3104]
[1738181621981,0.80770483,232.14,231.95,4.3112]
[1738181621982,34.36631531,232.04,231.95,4.3112]
[1738181622496,34.36631531,232.04,231.94,34.42931531]
[1738181622797,0.80810437,232.12,231.99,34.36631531]
[1738181622798,34.36631531,232.07,231.99,34.36631531]
[1738181622998,34.36631531,232.09,232.02,24.027864]
[1738181623499,20.0,232.0,231.94,0.063]
[1738181623688,34.36631531,231.95,231.94,0.063]
[1738181624073,34.36631531,231.99,231.94,0.063]
[1738181624281,34.36631531,232.01,231.94,24.090864]
[1738181624479,34.36631531,231.99,231.94,0.31398]
[1738181624693,34.36631531,231.97,231.94,0.31398]
[1738181624989,1.80832785,232.07,231.94,0.063]
[1738181624990,34.36631531,231.95,231.94,0.063]
[1738181625195,34.36631531,231.97,231.94,0.063]
[1738181625396,34.36631531,231.95,231.94,0.063]
[1738181625779,35.17479821,231.95,231.94,0.063]
[1738181626097,34.36631531,231.96,231.94,0.063]
[1738181628104,0.80832979,231.95,231.94,0.063]
[1738181628395,20.0,231.93,231.76,4.3776]
[1738181628603,20.0,231.93,231.76,0.063]
[1738181628604,34.36631531,231.81,231.76,0.063]
[1738181628972,34.36631531,231.81,231.77,24.027864]
[1738181629173,34.36631531,231.85,231.77,0.25098]
[1738181629401,34.36631531,231.81,231.76,0.063]
[1738181629596,34.36631531,231.81,231.76,23.839884]
[1738181629785,34.36631531,231.81,231.76,0.063]
[1738181630097,34.36631531,231.83,231.76,4.62868]
[1738181630304,34.36631531,231.79,231.76,0.063]
[1738181630512,34.36631531,231.77,231.76,0.063]
[1738181630889,34.36631531,231.79,231.76,0.063]
[1738181631075,34.36631531,231.82,231.76,4.3777]
[1738181631275,34.36631531,231.82,231.76,0.063]
[1738181631477,34.36631531,231.78,231.76,0.063]
[1738181631995,0.80903572,231.77,231.76,0.063]
[1738181632197,20.0,231.75,231.72,0.063]
[1738181632399,0.80935186,231.74,231.72,0.063]
[1738181632586,34.36631531,231.73,231.72,0.063]
[1738181632788,68.73263062,231.73,231.72,0.063]
[1738181633295,69.85812062,231.73,231.72,0.063]
[1738181633513,69.73263062,231.73,231.72,0.063]
[1738181633672,68.73263062,231.73,231.72,0.063]
[1738181634377,1.0,231.68,231.6,0.063]
[1738181634674,34.36631531,231.61,231.6,0.063]
[1738181634890,34.36631531,231.64,231.6,4.3807]
[1738181635079,34.36631531,231.64,231.6,0.063]
[1738181635577,34.36631531,231.62,231.6,0.063]
[1738181636207,34.36631531,231.66,231.6,0.063]
[1738181636382,34.36631531,231.64,231.6,23.839884]
[1738181636577,34.36631531,231.7,231.62,4.3174]
[1738181636791,34.36631531,231.78,231.69,23.776884]
[1738181637489,34.36631531,231.82,231.72,34.36631531]
[1738181637692,34.36631531,231.73,231.64,34.36631531]
[1738181638010,34.36631531,231.71,231.62,38.68371531]
[1738181638206,34.36631531,231.71,231.65,23.776884]
[1738181638414,34.36631531,231.71,231.62,38.68371531]
[1738181638581,34.36631531,231.71,231.65,23.776884]
[1738181639085,34.36631531,231.68,231.62,4.3172]
[1738181639284,1.4314,231.77,231.6,0.063]
[1738181639285,34.36631531,231.64,231.6,0.063]
[1738181639483,34.36631531,231.62,231.6,0.063]
[1738181640692,34.36631531,231.66,231.61,23.776884]
[1738181641100,34.36631531,231.62,231.6,0.063]
[1738181641505,34.36631531,231.64,231.6,0.063]
[1738181642413,0.80963076,231.69,231.6,0.063]
[1738181642414,34.36631531,231.61,231.6,0.063]
[1738181642590,70.22505476,231.61,231.6,0.063]
[1738181642790,35.60775945,231.61,231.6,0.063]
[1738181642996,34.36631531,231.61,231.6,0.063]
[1738181643310,1.0,231.68,231.6,0.063]
[1738181643311,34.36631531,231.71,231.63,0.25098]
[1738181643485,0.8096287,231.73,231.63,0.25098]
[1738181643486,34.36631531,231.73,231.65,24.027864]
[1738181643685,34.36631531,231.78,231.69,24.027864]
[1738181643880,1.0,231.91,231.74,0.25098]
[1738181643881,34.36631531,231.85,231.74,0.25098]
[1738181644109,34.36631531,231.85,231.75,0.25098]
[1738181644291,0.80903104,231.91,231.78,24.027864]
[1738181644292,34.36631531,231.87,231.78,24.027864]
[1738181644498,35.44411531,231.96,231.74,0.25098]
[1738181644499,34.36631531,231.89,231.82,23.776884]
[1738181644696,1.26977106,231.95,231.82,23.776884]
[1738181644697,34.36631531,231.91,231.83,0.25098]
[1738181645003,0.03,231.95,231.91,0.25098]
[1738181645210,34.36631531,231.93,231.9,23.776884]
[1738181645403,0.03,231.95,231.82,10.7464]
[1738181645584,0.03,231.95,231.89,24.278844]
[1738181645784,0.03,231.95,231.94,24.027864]
[1738181646006,0.03,231.95,231.94,23.776884]
[1738181646198,0.03,231.95,231.91,34.36631531]
[1738181646514,0.03,231.95,231.87,34.36631531]
[1738181646704,0.03,231.95,231.89,34.36631531]
[1738181647018,0.03,231.95,231.9,24.027864]
[1738181647316,34.36631531,231.92,231.83,34.36631531]
[1738181647524,0.03,231.95,231.87,34.36631531]
[1738181647690,0.03,231.95,231.82,6.4329]
[1738181647691,34.36631531,231.93,231.83,34.36631531]
[1738181648043,0.03,231.95,231.82,6.4329]
[1738181648396,0.28098,231.95,231.82,6.4329]
[1738181648601,1.23969688,231.94,231.78,20.0]
[1738181648798,0.03,231.95,231.87,0.25098]
[1738181648998,0.03,231.95,231.89,34.36631531]
[1738181649300,0.03,231.95,231.89,34.61729531]
[1738181649500,34.39631531,231.95,231.85,34.36631531]
[1738181649717,34.36631531,231.91,231.83,34.36631531]
[1738181650007,34.36631531,231.91,231.84,23.776884]
[1738181650209,34.36631531,231.85,231.77,34.36631531]
[1738181650510,34.36631531,231.79,231.64,34.36631531]
[1738181650713,34.36631531,231.73,231.64,34.36631531]
[1738181651224,34.36631531,231.66,231.6,0.063]
[1738181651521,34.36631531,231.74,231.64,34.36631531]
[1738181651726,0.80925404,231.83,231.66,1.0]
[1738181651919,0.80887072,231.87,231.67,0.50196]
[1738181652112,34.36631531,231.85,231.75,34.36631531]
[1738181652313,0.4311,231.93,231.82,34.36631531]
[1738181652516,0.03,231.95,231.88,34.36631531]
[1738181652711,0.03,231.95,231.9,0.12549]
[1738181652912,34.36631531,231.91,231.72,35.36631531]
[1738181653099,34.36631531,231.9,231.75,4.3149]
[1738181653295,34.36631531,231.94,231.84,34.49180531]
[1738181653609,0.03,231.95,231.84,34.49180531]
[1738181653610,0.03,231.95,231.87,0.12549]
[1738181653797,0.03,231.95,231.89,23.776884]
[1738181653798,34.36631531,231.94,231.89,23.776884]
[1738181653996,34.36631531,231.94,231.84,34.36631531]
[1738181654218,0.03,231.95,231.84,34.36631531]
[1738181654219,0.03,231.95,231.91,23.776884]
[1738181654923,0.03,231.95,231.88,34.36631531]
[1738181655129,0.03,231.95,231.86,0.12549]
[1738181655130,0.03,231.95,231.9,34.36631531]
[1738181655321,0.03,231.95,231.91,24.027864]
[1738181655516,0.03,231.95,231.92,34.36631531]
[1738181655710,0.03,231.95,231.9,34.36631531]
[1738181655901,0.03,231.95,231.93,24.027864]
[1738181656098,0.03,231.95,231.94,58.14319931]
[1738181656421,0.03,231.95,231.94,23.776884]
[1738181656998,0.03,232.08,231.98,20.0]
[1738181657200,0.03,232.08,232.05,34.36631531]
[1738181657401,0.03,232.08,231.98,40.87441531]
[1738181657736,0.03,232.08,232.0,34.36631531]
[1738181657894,34.36631531,232.05,231.98,6.5081]
[1738181658100,34.36631531,232.07,231.99,23.902374]
[1738181658295,34.36631531,232.03,231.99,23.776884]
[1738181658499,34.36631531,232.03,231.88,6.5081]
[1738181658500,34.36631531,232.01,231.91,34.36631531]
[1738181658803,34.36631531,231.99,231.9,0.25098]
[1738181659108,34.36631531,231.97,231.88,6.5081]
[1738181659302,34.36631531,232.01,231.92,24.153354]
[1738181659505,34.36631531,232.07,231.99,0.12549]
[1738181659700,34.36631531,232.05,231.98,23.776884]
[1738181659932,0.80801095,232.06,231.88,22.6019]
[1738181659933,34.36631531,231.99,231.88,6.5081]
[1738181660098,34.36631531,231.99,231.89,34.36631531]
[1738181660300,34.36631531,231.99,231.9,24.027864]
[1738181660552,0.25098,232.06,231.88,6.5081]
[1738181660553,34.36631531,231.97,231.88,6.5081]
[1738181660821,34.36631531,232.01,231.91,34.36631531]
[1738181661324,0.431,232.02,231.88,10.8205]
[1738181661325,34.36631531,231.97,231.9,23.776884]
[1738181661527,34.36631531,231.99,231.89,34.36631531]
[1738181662040,1.23933431,232.02,231.93,0.25098]
[1738181662041,34.36631531,232.01,231.93,0.25098]
[1738181662337,34.36631531,232.03,231.93,34.36631531]
[1738181662616,34.36631531,231.97,231.89,34.36631531]
[1738181662798,34.36631531,232.01,231.92,24.027864]
[1738181663000,35.17468119,232.05,231.95,0.12549]
[1738181663217,34.36631531,232.07,231.98,23.776884]
[1738181663408,34.36631531,232.05,231.98,23.776884]
[1738181663608,34.36631531,232.03,231.96,23.902374]
[1738181663800,34.36631531,232.05,231.98,23.776884]
[1738181664000,34.79721531,232.07,231.98,23.776884]
[1738181664205,34.36631531,232.05,231.96,24.027864]
[1738181664699,34.36631531,232.05,231.98,23.776884]
[1738181664899,0.4309,232.07,231.98,23.776884]
[1738181664900,34.79721531,232.07,231.98,23.776884]
[1738181665108,34.36631531,232.06,231.98,23.776884]
[1738181665310,34.36631531,232.06,231.99,0.12549]
[1738181665512,34.36631531,232.06,231.97,38.67721531]
[1738181665513,1.0,232.05,231.86,1.70198694]
[1738181665716,1.0,232.05,231.79,6.1354]
[1738181665717,34.36631531,231.99,231.83,2.0]
[1738181666026,34.36631531,231.95,231.84,34.36631531]
[1738181666209,34.36631531,231.95,231.85,0.12549]
[1738181666624,0.03,232.05,231.96,0.12549]
[1738181666844,0.03,232.05,232.01,0.25098]
[1738181667144,0.03,232.05,232.04,58.39417931]
[1738181667444,0.03,232.05,232.04,59.64515931]
[1738181667642,0.03,232.05,232.04,58.14319931]
[1738181667846,0.4309,232.04,231.9,34.36631531]
[1738181668140,34.36631531,232.01,231.92,34.36631531]
[1738181668320,0.4309,232.04,231.88,40.46011531]
[1738181668321,34.36631531,231.97,231.88,40.46011531]
[1738181668519,0.12549,232.03,231.88,40.46011531]
[1738181668520,34.36631531,231.99,231.88,40.46011531]
[1738181668747,34.79731531,231.99,231.89,0.12549]
[1738181668952,34.79731531,231.99,231.89,0.25098]
[1738181670747,34.82721531,232.05,231.97,23.902374]
[1738181670923,34.36631531,232.03,231.97,0.12549]
[1738181671123,34.36631531,231.99,231.88,40.46011531]
[1738181671324,34.36631531,231.95,231.86,34.36631531]
[1738181671525,34.36631531,231.95,231.87,24.278844]
[1738181671726,34.36631531,231.99,231.9,0.12549]
[1738181671939,34.36631531,231.95,231.86,34.36631531]
[1738181672138,0.12549,232.04,231.88,34.36631531]
[1738181672139,34.36631531,231.97,231.88,34.36631531]
[1738181672334,34.36631531,232.03,231.92,34.36631531]
[1738181672540,34.36631531,232.01,231.92,34.36631531]
[1738181672941,34.36631531,231.99,231.9,34.36631531]
[1738181673139,34.36631531,231.97,231.88,38.92979531]
[1738181673450,34.36631531,231.99,231.91,24.153354]
[1738181673830,34.36631531,231.99,231.91,23.776884]
[1738181674233,34.36631531,231.99,231.89,24.278844]
[1738181674752,34.36631531,231.97,231.88,4.3125]
[1738181674936,34.36631531,231.99,231.9,34.36631531]
[1738181675135,34.36631531,232.03,231.95,0.37647]
[1738181675338,0.03,232.05,231.95,0.37647]
[1738181675339,0.03,232.05,232.01,0.12549]
[1738181675638,0.03,232.05,232.04,20.50196]
[1738181675840,0.03,232.05,232.04,43.902374]
[1738181676033,0.03,232.05,232.04,44.278844]
[1738181676536,0.03,232.08,232.07,20.50196]
[1738181676748,0.03,232.08,232.07,78.64515931]
[1738181676943,0.03,232.08,232.07,82.95415931]
[1738181677757,0.03,232.19,232.08,24.278844]
[1738181677937,0.03,232.19,232.12,0.12549]
[1738181678138,0.03,232.19,232.18,24.153354]
[1738181678441,0.03,232.19,232.18,24.278844]
[1738181678658,0.03,232.19,232.18,23.776884]
[1738181678865,0.03,232.29,232.17,34.36631531]
[1738181678866,0.03,232.29,232.22,20.0]
[1738181679153,0.03,232.32,232.29,0.12549]
[1738181679355,0.03,232.32,232.31,43.902374]
[1738181679550,0.03,232.32,232.31,45.278844]
[1738181679935,34.36631531,232.46,232.36,24.027864]
[1738181680133,34.36631531,232.42,232.33,34.36631531]
[1738181680360,34.36631531,232.34,232.23,34.36631531]
[1738181680529,34.36631531,232.34,232.2,4.3066]
[1738181680530,0.80710084,232.33,232.21,34.36631531]
[1738181680732,34.36631531,232.29,232.2,4.3066]
[1738181681053,34.36631531,232.31,232.24,20.0]
[1738181681252,0.4304,232.33,232.23,0.12549]
[1738181681253,34.36631531,232.35,232.26,23.776884]
[1738181681454,34.36631531,232.37,232.28,23.776884]
[1738181681651,34.36631531,232.37,232.3,23.776884]
[1738181681858,34.36631531,232.39,232.3,23.776884]
[1738181682033,34.36631531,232.43,232.35,34.36631531]
[1738181682357,34.36631531,232.43,232.36,23.776884]
[1738181682551,34.36631531,232.43,232.35,34.36631531]
[1738181682552,34.36631531,232.41,232.33,34.36631531]
[1738181682762,34.36631531,232.41,232.32,23.776884]
[1738181682949,34.36631531,232.39,232.32,23.776884]
[1738181683154,34.36631531,232.35,232.27,34.36631531]
[1738181683350,34.36631531,232.33,232.23,34.36631531]
[1738181683737,34.36631531,232.31,232.22,4.3062]
[1738181683932,34.36631531,232.35,232.22,4.3062]
[1738181684138,34.36631531,232.36,232.29,23.776884]
[1738181684338,34.36631531,232.36,232.27,23.776884]
[1738181684642,34.36631531,232.38,232.29,34.36631531]
[1738181684841,35.17329361,232.43,232.33,34.36631531]
[1738181685045,0.4302,232.42,232.33,34.36631531]
[1738181685242,0.8069783,232.43,232.35,34.36631531]
[1738181685454,0.8069783,232.43,232.37,34.36631531]
[1738181685659,34.36631531,232.47,232.37,34.36631531]
[1738181685832,34.36631531,232.44,232.35,34.36631531]
[1738181686033,34.36631531,232.46,232.36,23.776884]
[1738181686232,34.36631531,232.46,232.38,23.776884]
[1738181686466,1.23683462,232.48,232.39,34.36631531]
[1738181686467,35.60314993,232.48,232.39,34.36631531]
[1738181686635,35.60314993,232.48,232.41,34.36631531]
[1738181686636,0.80673462,232.48,232.41,34.36631531]
[1738181686839,0.80672427,232.59,232.47,34.36631531]
[1738181687059,0.80631274,232.61,232.54,34.36631531]
[1738181687560,34.36631531,232.59,232.5,58.14319931]
[1738181687860,0.80631274,232.61,232.49,4.3012]
[1738181687861,0.80631274,232.61,232.54,34.36631531]
[1738181688472,0.80621519,232.6,232.54,34.36631531]
[1738181688977,0.03,232.63,232.56,34.36631531]
[1738181689160,0.03,232.63,232.58,34.36631531]
[1738181689352,0.83600132,232.63,232.56,34.36631531]
[1738181689539,35.63211663,232.63,232.54,34.36631531]
[1738181689779,34.36631531,232.57,232.49,34.36631531]
[1738181689941,1.25098,232.62,232.51,34.36631531]
[1738181689942,34.36631531,232.61,232.51,34.36631531]
[1738181690138,0.80628168,232.6,232.53,34.36631531]
[1738181690336,34.36631531,232.59,232.49,34.36631531]
[1738181690557,0.03,232.63,232.58,34.36631531]
[1738181690882,0.03,232.63,232.5,17.705866]
[1738181691178,1.26593212,232.63,232.48,28.078184]
[1738181691349,1.0,232.59,232.4,4.3029]
[1738181691674,1.0,232.59,232.39,17.286]
[1738181691675,34.36631531,232.53,232.44,34.36631531]
[1738181691878,34.36631531,232.45,232.36,34.36631531]
[1738181692163,35.17311885,232.51,232.42,34.36631531]
[1738181692377,20.0,232.44,232.38,34.36631531]
[1738181692543,0.80688001,232.43,232.22,51.16]
[1738181692742,0.80688001,232.43,232.23,4.306]
[1738181692944,0.80689391,232.47,232.28,1.0]
[1738181693352,1.0,232.59,232.33,0.37647]
[1738181693353,20.0,232.5,232.33,0.37647]
[1738181693550,0.43,232.54,232.46,34.36631531]
[1738181693745,0.80652585,232.53,232.46,34.36631531]
[1738181694072,0.80652585,232.53,232.33,0.37647]
[1738181694073,34.36631531,232.49,232.4,34.36631531]
[1738181694265,0.80672184,232.48,232.41,23.776884]
[1738181694474,0.80672184,232.48,232.42,34.36631531]
[1738181694674,1.505,232.54,232.44,34.36631531]
[1738181694675,0.80665723,232.5,232.44,34.36631531]
[1738181694877,0.80653729,232.52,232.48,34.36631531]
[1738181695045,1.23643729,232.58,232.5,34.36631531]
[1738181695566,34.36631531,232.57,232.48,34.36631531]
[1738181695872,34.36631531,232.55,232.46,34.36631531]
[1738181696071,34.36631531,232.53,232.44,34.36631531]
[1738181696241,34.36631531,232.51,232.42,34.36631531]
[1738181696444,34.36631531,232.49,232.4,34.36631531]
[1738181696653,34.36631531,232.49,232.31,17.217119]
[1738181696654,20.0,232.4,232.31,21.521619]
[1738181696858,34.36631531,232.36,232.27,34.36631531]
[1738181697067,34.36631531,232.4,232.31,34.36631531]
[1738181697266,0.80691994,232.51,232.38,34.36631531]
[1738181697478,1.23691903,232.46,232.38,34.36631531]
[1738181697649,0.80681903,232.46,232.41,23.776884]
[1738181697966,0.80499114,232.54,232.45,34.36631531]
[1738181698173,35.17130645,232.54,232.45,34.36631531]
[1738181698346,34.36631531,232.52,232.43,34.36631531]
[1738181698547,34.36631531,232.48,232.39,34.36631531]
[1738181698762,34.36631531,232.5,232.4,23.776884]
[1738181698961,0.80663884,232.52,232.45,34.36631531]
[1738181699164,0.80663884,232.52,232.47,34.36631531]
[1738181699459,1.519,232.59,232.51,34.36631531]
[1738181699645,0.80632099,232.58,232.51,34.36631531]
[1738181699844,0.80632099,232.58,232.49,34.36631531]
[1738181700071,0.80632099,232.58,232.5,23.776884]
[1738181700270,34.36631531,232.57,232.49,34.36631531]
[1738181700598,34.36631531,232.55,232.47,34.36631531]
[1738181700775,0.80648639,232.54,232.47,34.36631531]
[1738181700953,0.80639127,232.53,232.47,34.36631531]
[1738181701269,35.17279008,232.56,232.47,34.36631531]
[1738181701484,2.32539425,232.59,232.51,34.36631531]
[1738181701646,0.80639425,232.59,232.53,34.36631531]
[1738181702061,0.8063001,232.58,232.53,34.36631531]
[1738181702250,34.36631531,232.56,232.47,34.36631531]
[1738181702558,34.36631531,232.6,232.51,34.36631531]
[1738181702768,34.36631531,232.58,232.49,34.36631531]
[1738181702967,34.36631531,232.56,232.45,34.36631531]
[1738181703167,34.36631531,232.46,232.39,17.21187]
[1738181703375,0.4302,232.43,232.37,0.063]
[1738181703678,1.0751,232.53,232.39,34.36631531]
[1738181703880,0.03,232.63,232.42,0.12549]
[1738181704076,0.4599,232.58,232.44,0.12549]
[1738181704415,0.4599,232.58,232.47,23.776884]
[1738181704896,34.36631531,232.48,232.38,34.36631531]
[1738181705063,34.36631531,232.44,232.37,0.063]
[1738181705265,0.8068464,232.43,232.37,0.063]
[1738181705568,34.36631531,232.54,232.42,34.36631531]
[1738181705768,34.36631531,232.54,232.44,34.36631531]
[1738181705769,0.80655146,232.53,232.44,34.36631531]
[1738181705974,34.36631531,232.48,232.38,34.36631531]
[1738181706173,34.36631531,232.42,232.37,0.063]
[1738181706387,0.80692022,232.41,232.37,0.063]
[1738181706576,34.36631531,232.38,232.27,34.36631531]
[1738181706762,34.36631531,232.38,232.22,4.3061]
[1738181706763,34.36631531,232.3,232.22,17.224072]
[1738181706966,34.36631531,232.26,232.17,34.36631531]
[1738181707268,34.36631531,232.26,232.11,6.489]
[1738181707269,34.36631531,232.32,232.23,34.36631531]
[1738181707464,1.0,232.43,232.16,21.0]
[1738181707669,1.0,232.41,232.19,20.0]
[1738181707884,0.80720669,232.4,232.21,0.12549]
[1738181708114,0.80720669,232.4,232.25,0.12549]
[1738181708476,35.173522,232.4,232.31,34.36631531]
[1738181708965,34.36631531,232.38,232.29,34.36631531]
[1738181709297,0.80715667,232.37,232.27,34.36631531]
[1738181709462,34.79661531,232.36,232.25,34.36631531]
[1738181709657,34.79661531,232.36,232.23,0.063]
[1738181709658,34.36631531,232.4,232.29,34.36631531]
[1738181709884,0.80704456,232.39,232.33,34.36631531]
[1738181710099,0.80704456,232.41,232.35,34.36631531]
[1738181710301,0.80683728,232.45,232.39,34.36631531]
[1738181710634,1.23703728,232.45,232.37,34.36631531]
[1738181711095,34.36631531,232.44,232.34,34.36631531]
[1738181711265,1.23703728,232.45,232.32,34.36631531]
[1738181711266,34.36631531,232.4,232.32,34.36631531]
[1738181711467,0.25098,232.48,232.32,34.36631531]
[1738181711468,34.36631531,232.53,232.38,34.36631531]
[1738181711705,0.80660807,232.52,232.47,34.36631531]
[1738181711939,1.23655723,232.54,232.47,34.36631531]
[1738181712391,0.80659706,232.56,232.47,34.36631531]
[1738181712697,34.36631531,232.55,232.45,34.36631531]
[1738181713017,0.80660725,232.54,232.47,34.36631531]
[1738181713598,0.03,232.58,232.53,34.36631531]
[1738181713804,0.4599,232.58,232.51,34.36631531]
[1738181714007,0.4599,232.58,232.49,23.776884]
[1738181714008,35.17271198,232.57,232.49,34.36631531]
[1738181714326,1.50196,232.53,232.37,34.36631531]
[1738181714493,0.25098,232.51,232.33,23.776884]
[1738181714690,34.36631531,232.46,232.37,34.36631531]
[1738181714895,0.80683711,232.5,232.35,34.36631531]
[1738181714896,34.36631531,232.44,232.35,34.36631531]
[1738181715085,34.36631531,232.37,232.29,34.36631531]
[1738181715285,34.36631531,232.33,232.23,34.42931531]
[1738181715485,34.36631531,232.26,232.23,0.063]
[1738181715800,34.36631531,232.28,232.23,0.063]
[1738181715997,34.36631531,232.26,232.23,0.063]
[1738181716308,34.36631531,232.28,232.23,0.063]
[1738181716511,34.36631531,232.3,232.23,0.063]
[1738181716817,1.0,232.39,232.23,0.063]
[1738181716818,0.4304,232.33,232.26,34.36631531]
[1738181716994,0.80728259,232.35,232.3,34.36631531]
[1738181717193,0.80728259,232.35,232.32,34.36631531]
[1738181717194,0.80717369,232.35,232.32,34.36631531]
[1738181717409,0.80708441,232.39,232.32,34.36631531]
[1738181717614,0.80697351,232.41,232.34,34.36631531]
[1738181717928,34.36631531,232.39,232.3,34.36631531]
[1738181718214,34.36631531,232.37,232.28,34.36631531]
[1738181718387,34.36631531,232.35,232.26,34.36631531]
[1738181718589,34.36631531,232.33,232.24,34.36631531]
[1738181718829,34.36631531,232.29,232.23,0.063]
[1738181719024,0.25098,232.24,232.23,0.063]
[1738181719230,0.8077622,232.24,232.23,0.063]
[1738181719439,34.36631531,232.16,232.08,34.36631531]
[1738181719618,0.80784829,232.15,232.08,34.36631531]
[1738181719819,34.36631531,232.14,232.06,34.36631531]
[1738181720131,1.23854829,232.15,232.06,34.36631531]
[1738181720132,0.80788314,232.13,232.06,34.36631531]
[1738181720335,34.36631531,232.1,232.04,0.063]
[1738181720521,34.36631531,232.06,232.04,0.063]
[1738181720724,0.80825407,232.05,232.04,0.063]
[1738181721710,34.36631531,232.06,232.04,0.063]
[1738181721917,0.808292,232.05,232.04,0.063]
[1738181722731,0.80821805,232.07,232.04,0.063]
[1738181722908,34.36631531,232.06,232.04,0.063]
[1738181723107,0.8083948,232.05,232.04,0.063]
[1738181723317,1.0593748,232.05,232.04,0.063]
[1738181723537,20.4309,232.03,231.96,0.063]
[1738181723726,34.36631531,231.97,231.96,0.063]
[1738181724238,34.86827531,231.97,231.96,0.063]
[1738181724417,0.50196,231.92,231.88,0.063]
[1738181724605,34.36631531,231.89,231.88,0.063]
[1738181724803,0.80887602,231.96,231.88,0.063]
[1738181725035,0.80842397,232.07,231.91,20.0]
[1738181725243,0.80842397,232.07,232.0,34.36631531]
[1738181725445,0.80842397,232.07,232.02,34.36631531]
[1738181725654,0.8080234,232.11,232.04,34.36631531]
[1738181726108,0.8080234,232.11,232.06,34.36631531]
[1738181726304,0.8080234,232.11,232.04,34.36631531]
[1738181726509,34.36631531,232.18,232.1,34.36631531]
[1738181726707,0.80780007,232.17,232.1,34.36631531]
[1738181726943,0.4306,232.22,232.14,34.36631531]
[1738181726944,0.80777455,232.19,232.14,34.36631531]
[1738181727144,0.8076877,232.21,232.16,34.36631531]
[1738181727345,20.0,232.2,232.12,34.36631531]
[1738181727513,34.36631531,232.13,232.03,34.36631531]
[1738181727717,0.80807398,232.12,232.05,34.36631531]
[1738181727913,34.36631531,232.11,232.04,0.063]
[1738181728133,34.36631531,232.09,232.04,0.063]
[1738181728441,0.80808582,232.08,232.04,0.063]
[1738181728646,0.80803012,232.12,232.05,34.36631531]
[1738181729018,34.36631531,232.11,232.04,0.063]
[1738181729219,34.36631531,232.07,232.04,0.063]
[1738181729435,34.36631531,232.05,232.04,0.063]
[1738181729637,34.36631531,232.07,232.04,0.063]
[1738181729847,0.80819654,232.06,232.04,0.063]
[1738181730141,34.36631531,232.05,232.04,0.063]
[1738181730346,34.86827531,232.05,232.04,0.063]
[1738181730521,34.36631531,231.98,231.89,34.36631531]
[1738181730721,0.80854022,231.97,231.89,34.36631531]
[1738181731250,0.80854022,231.97,231.91,34.36631531]
[1738181731541,0.80854022,231.97,231.89,34.36631531]
[1738181731741,0.8084393,231.99,231.93,34.36631531]
[1738181731950,0.8084393,231.99,231.95,34.36631531]
[1738181732120,34.36631531,232.04,231.95,34.36631531]
[1738181732327,34.36631531,232.08,231.99,34.36631531]
[1738181732639,34.36631531,232.06,231.97,34.36631531]
[1738181732819,0.73769838,232.05,232.01,34.36631531]
[1738181733023,34.36631531,232.1,232.01,34.36631531]
[1738181733024,0.80813756,232.09,232.01,34.36631531]
[1738181733345,0.80811868,232.08,232.03,34.36631531]
[1738181733546,0.80804902,232.11,232.05,34.36631531]
[1738181734547,34.36631531,232.09,232.0,34.36631531]
[1738181734738,0.80804746,232.08,232.02,34.36631531]
[1738181734938,34.79711531,232.11,231.94,34.36631531]
[1738181734939,34.36631531,232.03,231.94,34.36631531]
[1738181735130,0.50196,232.01,231.84,0.063]
[1738181735332,0.50196,231.99,231.84,0.063]
[1738181735534,0.50196,231.97,231.84,0.063]
[1738181735738,20.4311,231.95,231.84,0.063]
[1738181735939,0.80873745,231.94,231.84,0.063]
[1738181736255,34.36631531,231.89,231.84,0.063]
[1738181737856,34.36631531,231.91,231.84,0.063]
[1738181738047,0.80881655,231.9,231.84,0.063]
[1738181738349,0.80881655,231.9,231.86,34.36631531]
[1738181738524,0.80867432,231.94,231.88,34.42931531]
[1738181738731,34.36631531,231.92,231.88,0.063]
[1738181738923,34.36631531,231.9,231.88,0.063]
[1738181739240,0.80888043,231.89,231.88,0.063]
[1738181739560,0.93437043,231.89,231.88,0.063]
[1738181739746,1.0,231.84,231.72,0.063]